bitfinex/quotes_SOLUSD_20251001
["timestamp","ask_amount","ask_price","bid_price","bid_amount"]
[1759338695417,35.11320885,219.13,219.05,5.27516776]
[1759338695620,35.11320885,219.13,219.06,0.71]
[1759338695842,39.67679242,219.13,219.06,0.71]
[1759338696633,9.97941934,219.14,219.06,0.71]
[1759338696931,42.48941934,219.14,219.06,0.71]
[1759338697128,42.48941934,219.14,219.06,0.99432314]
[1759338697641,42.48941934,219.14,219.07,16.68662847]
[1759338697943,42.48941934,219.14,219.08,0.71]
[1759338700350,42.48941934,219.14,219.09,15.97517001]
[1759338700566,42.48941934,219.14,219.06,0.28432314]
[1759338700567,0.53,219.13,219.07,4.56475099]
[1759338701421,9.44941934,219.14,219.08,0.71]
[1759338701833,9.44941934,219.14,219.1,20.8]
[1759338702056,9.44941934,219.14,219.11,0.71]
[1759338702226,9.44941934,219.14,219.12,0.71]
[1759338702546,9.44941934,219.14,219.13,0.71]
[1759338703119,9.44941934,219.14,219.05,89.67647521]
[1759338703120,9.44941934,219.14,219.09,0.71]
[1759338703331,9.97941934,219.14,219.07,0.71]
[1759338703537,9.44941934,219.14,219.07,0.71]
[1759338704324,12.03262819,219.14,219.08,4.56454263]
[1759338704645,9.97941934,219.14,219.08,4.56454263]
[1759338704946,9.44941934,219.14,219.08,5.27454263]
[1759338705242,2.05320885,219.13,219.08,4.56454263]
[1759338705428,2.58320885,219.12,219.08,4.56454263]
[1759338705633,2.05320885,219.12,219.08,4.56454263]
[1759338705961,14.01276837,219.14,219.07,20.8]
[1759338706135,9.44941934,219.14,219.07,20.8]
[1759338706338,12.03262819,219.14,219.08,4.56454263]
[1759338706546,2.05320885,219.13,219.08,4.56454263]
[1759338706845,2.58320885,219.13,219.08,4.56454263]
[1759338707043,2.05320885,219.13,219.08,5.27454263]
[1759338707225,11.50262819,219.14,219.08,5.27454263]
[1759338707725,11.50262819,219.14,219.08,16.68589921]
[1759338710746,11.50262819,219.14,219.08,5.27454263]
[1759338713453,2.05320885,219.1,219.02,0.1]
[1759338713641,2.05320885,219.1,219.02,0.8]
[1759338713642,2.58320885,219.1,219.02,0.8]
[1759338714145,0.53,219.1,219.03,4.56558462]
[1759338714349,2.58320885,219.1,219.03,5.26558462]
[1759338714544,2.05320885,219.1,219.03,4.56558462]
[1759338714729,2.05320885,219.1,219.04,0.7]
[1759338715229,2.05320885,219.1,219.05,4.56516776]
[1759338715427,2.05320885,219.1,219.05,5.26516776]
[1759338716256,2.05320885,219.1,219.06,0.7]
[1759338717131,2.05320885,219.11,219.06,0.7]
[1759338717734,2.58320885,219.11,219.06,0.7]
[1759338718242,3.73954478,219.11,219.06,5.26483136]
[1759338718657,7.77347034,219.11,219.05,0.7]
[1759338719438,3.20954478,219.11,219.05,0.7]
[1759338719840,5.09353024,219.13,219.05,0.7]
[1759338720040,3.20954478,219.12,219.05,0.7]
[1759338720236,3.20954478,219.12,219.06,4.56495937]
[1759338721243,3.73954478,219.12,219.06,4.56495937]
[1759338721445,3.20954478,219.12,219.07,0.7]
[1759338721645,3.20954478,219.13,219.08,0.7]
[1759338721962,9.44941934,219.14,219.08,0.7]
[1759338723565,9.44941934,219.14,219.09,4.56433429]
[1759338723748,9.44941934,219.14,219.09,5.26433429]
[1759338723947,9.44941934,219.14,219.1,0.7]
[1759338724265,9.44941934,219.14,219.09,4.56433429]
[1759338724474,9.44941934,219.14,219.09,5.26433429]
[1759338725870,12.65896412,219.14,219.09,5.26433429]
[1759338726046,0.53,219.13,219.09,4.56433429]
[1759338726560,12.65896412,219.14,219.09,4.56433429]
[1759338726764,12.65896412,219.14,219.09,5.26433429]
[1759338727166,13.18896412,219.14,219.09,5.26433429]
[1759338727377,9.97941934,219.14,219.09,5.26433429]
[1759338728750,9.97941934,219.14,219.08,4.56454263]
[1759338729166,9.97941934,219.14,219.08,5.26454263]
[1759338729471,9.44941934,219.14,219.08,5.26454263]
[1759338733173,9.44941934,219.14,219.1,4.56412596]
[1759338733469,9.44941934,219.14,219.11,0.7]
[1759338734569,9.44941934,219.14,219.09,0.7]
[1759338734965,13.18896412,219.14,219.09,0.7]
[1759338735168,0.53,219.13,219.08,4.56454263]
[1759338735358,17.22229307,219.14,219.08,4.56454263]
[1759338735564,17.22229307,219.14,219.08,5.26454263]
[1759338736859,17.75229307,219.14,219.08,5.26454263]
[1759338737375,14.54274829,219.14,219.08,5.26454263]
[1759338738175,14.01274829,219.14,219.08,5.26454263]
[1759338739062,9.44941934,219.14,219.08,5.26454263]
[1759338739876,9.97941934,219.14,219.08,5.26454263]
[1759338740456,9.44941934,219.14,219.1,4.56412596]
[1759338740758,9.44941934,219.14,219.11,0.67]
[1759338741166,9.44941934,219.14,219.1,5.23412596]
[1759338741668,9.44941934,219.14,219.11,0.67]
[1759338743979,9.44941934,219.14,219.11,5.23375594]
[1759338744188,9.44941934,219.14,219.11,5.26375594]
[1759338744763,9.44941934,219.14,219.12,0.7]
[1759338744958,3.55768222,219.16,219.12,0.7]
[1759338744959,3.02768222,219.16,219.12,0.7]
[1759338745169,8.30180843,219.19,219.11,15.9735501]
[1759338745376,3.73954478,219.18,219.12,0.7]
[1759338745773,3.20954478,219.13,219.08,0.7]
[1759338745962,3.20954478,219.11,219.06,0.7]
[1759338746282,3.73954478,219.11,219.06,0.7]
[1759338746490,7.77350169,219.11,219.06,5.26488715]
[1759338746691,0.53,219.1,219.06,4.56488715]
[1759338746884,7.77350169,219.11,219.06,5.26488715]
[1759338747086,7.77350169,219.11,219.06,4.56488715]
[1759338747294,8.30350169,219.11,219.06,5.26488715]
[1759338749484,0.53,219.1,219.05,4.56516776]
[1759338749684,7.77350169,219.11,219.06,0.7]
[1759338749988,8.30350169,219.11,219.06,0.7]
[1759338750286,3.20954478,219.09,219.03,4.56554752]
[1759338750586,0.53,219.09,219.03,5.26554752]
[1759338750785,3.73954478,219.09,219.03,5.26554752]
[1759338751584,3.20954478,219.06,219.02,0.1]
[1759338751799,3.20954478,219.07,219.02,0.1]
[1759338751973,0.53,219.06,219.02,0.1]
[1759338752677,3.20954478,219.08,219.02,0.1]
[1759338752678,3.73954478,219.08,219.02,0.1]
[1759338752986,10.80137741,219.1,219.03,0.7]
[1759338753173,11.33137741,219.1,219.03,0.7]
[1759338753574,11.33137741,219.1,219.04,4.56537618]
[1759338755385,5.91176333,219.1,219.04,4.56537618]
[1759338755763,5.09415041,219.1,219.04,4.56537618]
[1759338755959,8.30369519,219.1,219.04,4.56537618]
[1759338756766,3.20954478,219.1,219.04,4.56537618]
[1759338756971,3.20954478,219.1,219.04,5.26537618]
[1759338757171,3.20954478,219.1,219.05,0.7]
[1759338757602,3.73954478,219.1,219.05,0.7]
[1759338758280,3.73954478,219.09,219.03,4.56555188]
[1759338758696,3.20954478,219.1,219.04,0.7]
[1759338758865,7.77367129,219.1,219.04,0.7]
[1759338759065,8.30367129,219.1,219.04,0.7]
[1759338760592,8.30367129,219.1,219.05,4.56516776]
[1759338760896,8.30367129,219.1,219.04,5.26536247]
[1759338760897,0.53,219.09,219.04,5.26536247]
[1759338761885,5.09433496,219.09,219.04,5.26536247]
[1759338762689,0.53,219.08,219.04,4.56536247]
[1759338762891,0.53,219.08,219.03,4.56555105]
[1759338763094,7.77387974,219.09,219.04,0.7]
[1759338763288,8.30387974,219.09,219.04,0.7]
[1759338763688,0.53,219.09,219.04,0.7]
[1759338764000,35.96954478,219.12,219.06,4.56495937]
[1759338764293,36.49954478,219.12,219.06,5.26495937]
[1759338764469,3.20954478,219.11,219.06,5.26495937]
[1759338764669,3.73954478,219.11,219.06,5.26495937]
[1759338766196,8.30349988,219.11,219.06,0.7]
[1759338766386,3.20954478,219.09,219.04,5.26517099]
[1759338766577,3.20954478,219.09,219.04,4.56517099]
[1759338766897,3.20954478,219.09,219.05,0.7]
[1759338767277,3.20954478,219.09,219.03,15.97954617]
[1759338767478,3.20954478,219.09,219.03,5.26558462]
[1759338768191,3.20954478,219.09,219.04,0.7]
[1759338768400,3.20954478,219.08,219.04,0.7]
[1759338769102,7.77369919,219.1,219.05,0.7]
[1759338769297,7.77369919,219.1,219.05,5.26505402]
[1759338769597,7.77369919,219.1,219.06,0.7]
[1759338770092,8.30369919,219.1,219.06,0.7]
[1759338771280,8.30369919,219.1,219.04,0.7]
[1759338772480,8.30369919,219.1,219.04,5.26532332]
[1759338772789,32.68,219.11,219.05,0.7]
[1759338773183,40.45354924,219.11,219.05,0.7]
[1759338773918,40.98354924,219.11,219.05,0.7]
[1759338774200,3.20954478,219.1,219.05,0.7]
[1759338774495,3.20954478,219.1,219.04,4.56532332]
[1759338774496,3.20954478,219.1,219.06,0.68]
[1759338774702,8.3036795,219.1,219.05,4.56515972]
[1759338774890,8.3036795,219.1,219.05,5.24515972]
[1759338775094,3.20954478,219.07,219.02,0.1]
[1759338775402,3.20954478,219.06,219.02,0.1]
[1759338775610,3.73954478,219.06,219.02,0.1]
[1759338775902,0.53,219.06,219.02,0.1]
[1759338776289,3.73954478,219.08,219.02,0.1]
[1759338776501,0.53,219.07,219.02,0.78]
[1759338776689,0.53,219.07,219.02,5.34577692]
[1759338776884,5.09475951,219.07,219.02,5.34577692]
[1759338777096,8.30430429,219.07,219.02,5.34577692]
[1759338777397,5.09475951,219.07,219.02,5.34577692]
[1759338778479,4.56475951,219.07,219.02,4.66577692]
[1759338778676,4.56475951,219.07,219.03,0.68]
[1759338779481,4.56475951,219.07,219.02,4.66577692]
[1759338779705,5.09475951,219.07,219.02,5.34577692]
[1759338779905,40.41412516,219.08,219.03,0.68]
[1759338780104,3.73954478,219.07,219.03,0.68]
[1759338780307,2.58479768,219.07,219.03,0.68]
[1759338781001,6.61962783,219.07,219.02,0.1]
[1759338781194,7.14962783,219.07,219.02,0.1]
[1759338781394,2.05479768,219.05,219.02,0.1]
[1759338781593,0.53,219.06,219.02,0.1]
[1759338781594,2.05479768,219.04,219.02,0.1]
[1759338781796,2.58479768,219.04,219.02,0.1]
[1759338782013,7.59998621,219.07,219.02,0.1]
[1759338782014,2.58479768,219.03,219.02,0.1]
[1759338782383,35.20479768,219.03,219.02,0.1]
[1759338783083,39.7703823,219.03,219.02,0.1]
[1759338783707,32.62,219.03,219.02,0.1]
[1759338783912,37.18558462,219.03,219.02,0.1]
[1759338784091,37.71558462,219.03,219.02,0.1]
[1759338784296,32.62,219.03,219.02,0.1]
[1759338784699,32.6,219.03,219.02,0.1]
[1759338784893,35.18479768,219.03,219.02,0.1]
[1759338785197,39.7503823,219.03,219.02,0.1]
[1759338785708,39.2203823,219.03,219.02,0.1]
[1759338786494,52.70892454,219.03,219.02,0.1]
[1759338787901,53.23892454,219.03,219.02,0.1]
[1759338788408,52.70892454,219.03,219.02,0.1]
[1759338788608,53.23892454,219.03,219.02,0.1]
[1759338791209,62.06060207,219.03,219.02,0.1]
[1759338791415,64.11539975,219.03,219.02,0.1]
[1759338791713,67.14454999,219.03,219.02,0.1]
[1759338792005,90.70454999,219.03,219.02,0.1]
[1759338792712,90.17454999,219.03,219.02,0.1]
[1759338792915,90.70454999,219.03,219.02,0.1]
[1759338793301,67.14454999,219.03,219.02,0.1]
[1759338794402,64.55975231,219.03,219.02,0.1]
[1759338794601,66.61454999,219.03,219.02,0.1]
[1759338795724,67.14454999,219.03,219.02,0.1]
[1759338796410,90.70454999,219.03,219.02,0.1]
[1759338796588,67.14454999,219.03,219.02,0.1]
[1759338796784,66.61454999,219.03,219.02,0.1]
[1759338796989,67.14454999,219.03,219.02,0.1]
[1759338797409,90.70454999,219.03,219.02,0.1]
[1759338797605,77.1632771,219.03,219.02,0.1]
[1759338797805,79.21325774,219.03,219.02,0.1]
[1759338798498,76.18892454,219.03,219.02,0.1]
[1759338801415,79.21274361,219.03,219.02,0.1]
[1759338801603,76.18892454,219.03,219.02,0.1]
[1759338801804,79.21313908,219.03,219.02,0.1]
[1759338802616,52.62892454,219.03,219.02,0.1]
[1759338802802,55.65286485,219.03,219.02,0.1]
[1759338803220,52.62892454,219.03,219.02,0.1]
[1759338804421,55.65257575,219.03,219.02,0.1]
[1759338804620,52.62892454,219.03,219.02,0.8]
[1759338804924,50.57412686,219.03,219.02,0.1]
[1759338805128,52.62892454,219.03,219.02,0.1]
[1759338805621,76.18892454,219.03,219.02,0.1]
[1759338806214,76.12892454,219.03,219.02,0.1]
[1759338807027,43.66892454,219.03,219.02,0.1]
[1759338807211,76.12892454,219.03,219.02,0.1]
[1759338807903,79.15352049,219.03,219.02,0.1]
[1759338808107,76.12892454,219.03,219.02,0.1]
[1759338810828,79.15439193,219.03,219.02,0.1]
[1759338811030,76.12892454,219.03,219.02,0.8]
[1759338812219,79.15552588,219.03,219.02,0.8]
[1759338812423,79.15552588,219.03,219.02,0.1]
[1759338812733,76.12892454,219.03,219.02,0.1]
[1759338812919,79.15540471,219.03,219.02,0.1]
[1759338813516,55.59540471,219.03,219.02,0.1]
[1759338814038,60.16265094,219.03,219.02,0.1]
[1759338815641,60.16265094,219.03,219.02,0.8]
[1759338816241,60.16265094,219.03,219.02,0.1]
[1759338817023,2.05479768,219.0,218.95,4.36722072]
[1759338817223,34.51479768,219.0,218.95,4.36722072]
[1759338818341,39.0810784,219.0,218.95,4.36722072]
[1759338818938,39.0810784,219.0,218.96,0.7]
[1759338822342,39.0810784,219.0,218.97,0.7]
[1759338822526,39.0810784,219.0,218.94,4.56726699]
[1759338822728,32.46,219.0,218.98,0.7]
[1759338823048,39.08105323,219.0,218.96,0.7]
[1759338823246,39.08105323,219.0,218.97,0.7]
[1759338824446,39.08105323,219.0,218.98,0.7]
[1759338826134,3.0402656,218.99,218.94,4.56726699]
[1759338826357,39.08105323,219.0,218.98,0.7]
[1759338826729,37.02625555,219.0,218.98,0.7]
[1759338827030,39.08105323,219.0,218.98,0.7]
[1759338827229,3.04015968,218.99,218.98,0.7]
[1759338829641,8.31662298,218.99,218.95,0.7]
[1759338830035,7.60662298,218.99,218.96,0.7]
[1759338830230,4.5664633,218.99,218.97,0.7]
[1759338830441,4.5664633,218.99,218.94,83.3674528]
[1759338830442,7.60662298,218.99,218.95,0.7]
[1759338830642,10.37142066,218.99,218.94,77.8]
[1759338830850,10.37142066,218.99,218.95,0.7]
[1759338831047,9.66142066,218.99,218.94,78.5]
[1759338831233,0.71,218.98,218.94,78.5]
[1759338831436,0.71,218.98,218.95,0.7]
[1759338831654,9.66142066,218.99,218.94,77.8]
[1759338831958,9.66142066,218.99,218.96,0.7]
[1759338832155,2.05479768,218.97,218.94,78.5]
[1759338832361,32.46,218.98,218.95,0.7]
[1759338832550,2.05479768,218.97,218.95,0.7]
[1759338833154,6.62169075,218.97,218.95,0.7]
[1759338833354,9.66185043,218.97,218.95,0.7]
[1759338833558,5.09495736,218.97,218.95,0.7]
[1759338833855,2.05479768,218.97,218.95,0.7]
[1759338834357,34.51479768,218.98,218.95,0.7]
[1759338834560,37.55495736,218.98,218.95,0.7]
[1759338834739,38.20495736,218.98,218.95,0.72]
[1759338835450,42.77164094,218.98,218.95,0.72]
[1759338835759,3.04015968,218.97,218.95,0.72]
[1759338836662,39.08148126,218.98,218.95,0.72]
[1759338836865,5.09501327,218.97,218.93,22.19352617]
[1759338837052,5.09501327,218.97,218.94,0.72]
[1759338837380,5.09501327,218.97,218.95,0.72]
[1759338837739,0.65,218.96,218.93,22.19352617]
[1759338837961,5.09501327,218.97,218.93,22.91352617]
[1759338838261,5.09501327,218.97,218.94,0.72]
[1759338838646,3.04021559,218.97,218.94,0.72]
[1759338838964,2.05479768,218.97,218.95,0.72]
[1759338839171,5.09501327,218.97,218.95,0.72]
[1759338839348,9.66194256,218.97,218.93,22.19352617]
[1759338839668,10.31194256,218.97,218.93,22.91352617]
[1759338840178,10.31194256,218.97,218.94,0.72]
[1759338840555,7.60714488,218.97,218.94,0.72]
[1759338840778,9.66194256,218.97,218.94,0.72]
[1759338841756,3.04021559,218.97,218.95,0.72]
[1759338842247,7.60707156,218.97,218.94,0.72]
[1759338842468,7.60707156,218.97,218.95,0.72]
[1759338843062,3.04021559,218.97,218.96,0.72]
[1759338843258,7.60705122,218.97,218.96,0.72]
[1759338843480,7.60705122,218.97,218.94,0.72]
[1759338843682,7.60705122,218.97,218.95,0.72]
[1759338844866,3.04021559,218.97,218.95,0.72]
[1759338845062,32.46,218.98,218.95,0.72]
[1759338845264,35.50021559,218.98,218.95,0.72]
[1759338845469,32.46,218.98,218.95,0.72]
[1759338846378,37.02668904,218.98,218.95,0.72]
[1759338846576,43.28004186,218.98,218.95,0.72]
[1759338846786,3.04021559,218.97,218.95,0.72]
[1759338846959,35.50021559,218.98,218.95,0.72]
[1759338847161,32.46,218.98,218.95,0.72]
[1759338847567,35.50021559,218.98,218.95,0.72]
[1759338848586,35.50021559,218.98,218.96,0.72]
[1759338848886,32.46,218.98,218.94,5.28737786]
[1759338849055,32.46,218.98,218.95,0.72]
[1759338849985,32.46,218.98,218.96,0.72]
[1759338850677,3.04021559,218.99,218.97,0.72]
[1759338850871,32.44,219.0,218.98,0.72]
[1759338852760,32.44,219.0,218.97,0.72]
[1759338853863,35.47595256,219.0,218.97,0.72]
[1759338854188,32.44,219.0,218.97,0.72]
[1759338855274,8.42914398,219.01,218.97,0.72]
[1759338855782,0.65,219.0,218.95,4.56721681]
[1759338856094,0.65,219.0,218.97,0.72]
[1759338856266,6.24856139,219.01,218.98,0.72]
[1759338856470,3.68542416,219.01,218.98,0.72]
[1759338856676,3.86313723,219.01,218.98,0.72]
[1759338856878,3.86313723,219.01,218.97,0.72]
[1759338856879,6.89856139,219.01,218.97,0.72]
[1759338857162,36.12542416,219.02,218.98,0.72]
[1759338857406,3.86313723,219.01,218.98,0.72]
[1759338857577,3.86313723,219.01,218.96,0.72]
[1759338857776,0.65,219.0,218.96,5.28700197]
[1759338857983,0.65,219.0,218.96,4.56700197]
[1759338858163,3.21313723,219.01,218.97,0.72]
[1759338858363,3.86313723,219.01,218.97,0.72]
[1759338858565,3.86313723,219.01,218.93,54.63352617]
[1759338858566,3.21313723,218.98,218.94,13.71710751]
[1759338858771,3.86313723,218.97,218.93,22.19352617]
[1759338858981,0.65,218.96,218.93,22.19352617]
[1759338859487,3.21313723,218.97,218.93,22.19352617]
[1759338859691,0.65,218.96,218.93,22.19352617]
[1759338860192,0.68,218.95,218.93,22.19352617]
[1759338860495,3.21313723,218.96,218.93,22.19352617]
[1759338860694,3.89313723,218.96,218.93,22.19352617]
[1759338861088,3.21313723,218.96,218.93,22.19352617]
[1759338861264,3.89313723,218.96,218.93,22.19352617]
[1759338861865,4.56688053,218.97,218.94,0.71]
[1759338862087,8.46001776,218.97,218.94,0.71]
[1759338862274,8.46001776,218.97,218.93,22.19352617]
[1759338862475,8.46001776,218.97,218.93,22.90352617]
[1759338863076,0.68,218.96,218.93,22.19352617]
[1759338863587,0.68,218.96,218.93,99.99352617]
[1759338863799,7.78001776,218.97,218.93,100.70352617]
[1759338864012,4.56688053,218.97,218.93,100.70352617]
[1759338864290,7.78001776,218.97,218.93,100.70352617]
[1759338864588,0.71,218.96,218.93,99.99352617]
[1759338864773,7.78001776,218.97,218.93,100.70352617]
[1759338864973,8.49001776,218.97,218.93,100.70352617]
[1759338865182,5.27688053,218.97,218.94,0.71]
[1759338865387,8.49001776,218.97,218.94,0.71]
[1759338865602,8.49001776,218.97,218.93,100.70352617]
[1759338866174,5.27688053,218.97,218.93,100.70352617]
[1759338866472,8.49001776,218.97,218.93,100.70352617]
[1759338868291,3.92313723,218.97,218.93,99.99352617]
[1759338868498,3.21313723,218.97,218.94,0.71]
[1759338868893,3.03542416,218.98,218.94,0.71]
[1759338869096,3.21313723,218.97,218.94,0.71]
[1759338869401,8.48999463,218.97,218.94,0.71]
[1759338869580,7.77999463,218.97,218.94,0.71]
[1759338869902,5.2768574,218.97,218.94,0.71]
[1759338870200,4.5668574,218.97,218.94,0.71]
[1759338870385,8.48999463,218.97,218.93,100.70352617]
[1759338870984,5.2768574,218.97,218.93,100.70352617]
[1759338871298,8.48999463,218.97,218.93,100.70352617]
[1759338871499,8.48999463,218.97,218.94,0.71]
[1759338872492,4.5668574,218.97,218.93,99.99352617]
[1759338872804,10.87647521,218.93,218.86,0.1]
[1759338873100,20.8,218.87,218.86,0.1]
[1759338873407,56.43313723,218.87,218.86,0.1]
[1759338873621,59.46856139,218.87,218.86,0.1]
[1759338874320,76.74432921,218.87,218.86,0.1]
[1759338875089,73.70890505,218.87,218.86,0.1]
[1759338875291,62.83242984,218.87,218.86,0.1]
[1759338875923,65.85405135,218.87,218.86,0.1]
[1759338876080,62.83242984,218.87,218.86,0.1]
[1759338876614,25.36892219,218.87,218.86,0.1]
[1759338876817,3.21313723,218.87,218.86,0.81]
[1759338877008,4.56851922,218.89,218.86,0.81]
[1759338877321,36.98828335,218.91,218.87,0.71]
[1759338877517,24.01313723,218.88,218.86,0.1]
[1759338877819,3.21313723,218.87,218.86,0.81]
[1759338878014,24.01313723,218.88,218.87,0.71]
[1759338878222,28.58201103,218.88,218.86,0.1]
[1759338878392,3.21313723,218.87,218.86,0.81]
[1759338878823,3.21313723,218.87,218.86,0.1]
[1759338879314,3.21313723,218.87,218.86,0.81]
[1759338879622,24.01313723,218.88,218.86,0.81]
[1759338879820,3.21313723,218.88,218.86,0.81]
[1759338880021,3.21313723,218.89,218.87,0.71]
[1759338880221,3.21313723,218.89,218.88,0.71]
[1759338880418,3.21313723,218.89,218.86,0.1]
[1759338880620,3.21313723,218.89,218.87,0.71]
[1759338881126,3.21313723,218.88,218.86,0.1]
[1759338881306,3.21313723,218.87,218.86,0.1]
[1759338881507,3.21313723,218.87,218.86,0.81]
[1759338881707,25.36860902,218.89,218.86,0.81]
[1759338881907,20.8,218.89,218.86,0.81]
[1759338882114,20.8,218.89,218.87,0.71]
[1759338882414,25.36851822,218.89,218.86,0.1]
[1759338882600,25.36851822,218.89,218.86,0.81]
[1759338882802,25.36851822,218.89,218.86,0.1]
[1759338883005,28.58165545,218.89,218.86,0.1]
[1759338884324,3.21313723,218.87,218.86,0.1]
[1759338884507,7.78205942,218.87,218.86,0.1]
[1759338885312,28.58205942,218.87,218.86,0.1]
[1759338886130,71.87853463,218.87,218.86,0.1]
[1759338886903,61.00205942,218.87,218.86,0.1]
[1759338888139,84.56205942,218.87,218.86,0.1]
[1759338888440,95.43853463,218.87,218.86,0.1]
[1759338888618,92.2253974,218.87,218.86,0.1]
[1759338888936,95.43853463,218.87,218.86,0.1]
[1759338889107,95.23908839,218.87,218.86,0.1]
[1759338889301,100.28284734,218.87,218.86,1e-08]
[1759338889712,94.05601912,218.87,218.86,1e-08]
[1759338889907,95.43853463,218.87,218.86,1e-08]
[1759338891225,71.87853463,218.87,218.86,1e-08]
[1759338891826,74.88988106,218.87,218.86,1e-08]
[1759338892038,86.59650967,218.87,218.83,0.1]
[1759338892236,10.87647521,218.84,218.83,0.1]
[1759338892445,46.50961244,218.84,218.83,0.1]
[1759338893542,70.06961244,218.84,218.83,0.1]
[1759338893711,55.98,218.84,218.83,0.1]
[1759338893908,59.19313723,218.84,218.83,0.1]
[1759338894227,40.20268575,218.84,218.83,0.1]
[1759338894433,36.98954852,218.84,218.83,0.1]
[1759338894743,40.20268575,218.84,218.83,0.1]
[1759338895324,36.98954852,218.84,218.83,0.1]
[1759338895515,40.20268575,218.84,218.83,0.1]
[1759338895910,36.98954852,218.84,218.83,0.1]
[1759338896210,40.20268575,218.84,218.83,0.1]
[1759338896406,23.56,218.84,218.83,0.77]
[1759338897625,32.44,218.89,218.83,5.33975734]
[1759338897946,35.65313723,218.89,218.84,0.67]
[1759338898326,4.56871345,218.88,218.84,0.67]
[1759338899138,32.44,218.89,218.84,0.67]
[1759338899313,37.00863991,218.89,218.84,0.67]
[1759338899931,37.00863991,218.89,218.8,0.1]
[1759338900239,37.00851167,218.89,218.81,4.57017503]
[1759338901142,0.69,218.95,218.82,0.28432314]
[1759338901308,0.69,218.95,218.82,11.16079835]
[1759338901510,3.21313723,218.95,218.82,11.16079835]
[1759338901709,3.21313723,218.95,218.83,0.67]
[1759338901944,20.8,218.93,218.83,0.67]
[1759338902316,20.8,218.93,218.84,4.56954852]
[1759338902629,20.8,218.92,218.85,0.67]
[1759338904343,0.69,218.95,218.85,0.95432314]
[1759338904513,5.25727834,218.95,218.86,16.66195832]
[1759338904709,5.25727834,218.95,218.87,0.67]
[1759338905113,4.56727834,218.95,218.87,0.67]
[1759338905637,4.56727834,218.95,218.88,4.56871345]
[1759338905638,5.25727834,218.95,218.88,4.56871345]
[1759338905831,53.24,218.96,218.89,0.67]
[1759338906029,58.49706464,218.96,218.89,0.67]
[1759338906243,60.55425907,218.96,218.89,0.67]
[1759338906444,58.49706464,218.96,218.85,0.28432314]
[1759338906633,0.69,218.95,218.85,0.28432314]
[1759338907636,5.25739197,218.95,218.85,16.27677647]
[1759338907954,0.69,218.94,218.85,16.27677647]
[1759338908152,0.69,218.94,218.85,95.07677647]
[1759338908460,0.69,218.94,218.86,0.67]
[1759338908635,0.69,218.93,218.86,0.67]
[1759338909550,55.29719443,218.96,218.87,0.28432314]
[1759338909551,53.24,218.96,218.87,0.28432314]
[1759338909738,53.24,218.96,218.89,15.98976654]
[1759338909932,0.69,218.98,218.9,0.67]
[1759338910150,0.69,219.0,218.91,32.42]
[1759338910332,22.31860229,219.03,218.92,0.95432314]
[1759338910532,0.69,219.02,218.93,0.67]
[1759338911544,0.69,219.02,218.94,15.98611491]
[1759338911753,0.69,219.02,218.95,0.67]
[1759338913254,0.69,219.02,218.9,10.87647521]
[1759338913255,20.8,219.0,218.89,13.71710751]
[1759338913435,2.05719443,218.93,218.85,4.56933973]
[1759338913777,0.69,218.92,218.85,15.99268905]
[1759338914282,0.69,218.92,218.86,0.67]
[1759338914750,4.56725279,218.95,218.86,0.95432314]
[1759338914964,5.25755269,218.94,218.87,4.56892219]
[1759338915257,0.69,218.98,218.88,0.95432314]
[1759338915460,0.69,218.98,218.9,10.87647521]
[1759338915649,21.49,219.0,218.91,33.37432314]
[1759338916049,0.69,219.0,218.92,0.67]
[1759338916266,0.69,219.01,218.92,0.67]
[1759338916955,4.56621004,219.0,218.93,4.56767003]
[1759338917492,5.25621004,219.0,218.93,4.56767003]
[1759338917667,7.31340447,219.0,218.93,4.56767003]